[Event "European Individual Women's Chess Championship 2017"]
[Site "Riga LAT"]
[Date "2017.04.21"]
[Round "10.46"]
[White "Mamedjarova, Turkan"]
[Black "Tsiganova, Monika"]
[Result "1-0"]
[LiveChessVersion "1.4.8"]
[BlackElo "2111"]
[WhiteElo "2267"]
[ECO "E16"]
[TimeControl "40/5400:1800+30"]

1. d4 {[%clk 1:30:52]} Nf6 {[%clk 1:30:49]} 2. Nf3 {[%clk 1:31:03]} e6
{[%clk 1:30:53]} 3. c4 {[%clk 1:31:16]} Bb4+ {[%clk 1:30:52]} 4. Bd2
{[%clk 1:31:22]} Qe7 {[%clk 1:30:34]} 5. a3 {[%clk 1:30:43]} Bxd2+
{[%clk 1:30:55]} 6. Nbxd2 {[%clk 1:31:12]} a5 {[%clk 1:28:12]} 7. e3
{[%clk 1:29:11]} d6 {[%clk 1:27:20]} 8. Qc2 {[%clk 1:29:02]} O-O {[%clk 1:27:15]}
9. Bd3 {[%clk 1:24:30]} Nbd7 {[%clk 1:25:33]} 10. g4 {[%clk 1:21:52]} Nxg4
{[%clk 1:21:46]} 11. Bxh7+ {[%clk 1:21:55]} Kh8 {[%clk 1:22:07]} 12. Bd3
{[%clk 1:15:18]} e5 {[%clk 1:20:10]} 13. Rg1 {[%clk 1:08:58]} Nh6
{[%clk 1:14:21]} 14. O-O-O {[%clk 1:00:22]} f5 {[%clk 1:07:15]} 15. Ng5
{[%clk 0:58:42]} e4 {[%clk 1:00:34]} 16. Be2 {[%clk 0:58:11]} c6 {[%clk 1:00:40]}
17. Rg2 {[%clk 0:47:08]} Nf6 {[%clk 0:50:42]} 18. Nh3 {[%clk 0:42:36]} Rg8
{[%clk 0:47:30]} 19. Rdg1 {[%clk 0:34:00]} Nh7 {[%clk 0:40:45]} 20. Rg6
{[%clk 0:32:57]} Nf8 {[%clk 0:39:27]} 21. R6g5 {[%clk 0:25:07]} g6
{[%clk 0:36:03]} 22. Nf4 {[%clk 0:23:53]} Kh7 {[%clk 0:35:37]} 23. h4
{[%clk 0:22:53]} Nf7 {[%clk 0:34:58]} 24. R5g3 {[%clk 0:22:32]} Bd7
{[%clk 0:33:27]} 25. Kb1 {[%clk 0:18:35]} Nh8 {[%clk 0:30:06]} 26. f3
{[%clk 0:17:56]} Re8 {[%clk 0:23:36]} 27. fxe4 {[%clk 0:15:29]} fxe4
{[%clk 0:22:42]} 28. Bg4 {[%clk 0:15:03]} Bxg4 {[%clk 0:21:03]} 29. Rxg4
{[%clk 0:15:32]} Nd7 {[%clk 0:20:49]} 30. Qd1 {[%clk 0:15:46]} Nf6
{[%clk 0:15:45]} 31. Rg5 {[%clk 0:15:25]} Qf7 {[%clk 0:10:07]} 32. Qe2
{[%clk 0:09:43]} d5 {[%clk 0:06:49]} 33. c5 {[%clk 0:08:21]} Kh6 {[%clk 0:06:14]}
34. Rf1 {[%clk 0:04:33]} Qe7 {[%clk 0:06:06]} 35. Qg2 {[%clk 0:04:36]} Nh7
{[%clk 0:06:10]} 36. Rg3 {[%clk 0:04:00]} Ref8 {[%clk 0:06:31]} 37. Rg1
{[%clk 0:04:14]} Rf6 {[%clk 0:06:11]} 38. Nf1 {[%clk 0:04:23]} Qf7
{[%clk 0:04:04]} 39. Nh2 {[%clk 0:04:18]} Rxf4 {[%clk 0:02:22]} 40. exf4
{[%clk 0:34:44]} Qxf4 {[%clk 0:32:40]} 41. Rf1 {[%clk 0:32:58]} Qc7
{[%clk 0:33:02]} 42. Ng4+ {[%clk 0:33:03]} Kg7 {[%clk 0:33:24]} 43. Ne5
{[%clk 0:33:27]} Kh6 {[%clk 0:29:37]} 44. Qd2+ {[%clk 0:29:31]} Kg7
{[%clk 0:29:56]} 45. h5 {[%clk 0:28:53]} Rf8 {[%clk 0:26:21]} 46. Rxf8
{[%clk 0:26:54]} Nxf8 {[%clk 0:26:36]} 47. Qg5 {[%clk 0:22:56]} Nf7
{[%clk 0:26:28]} 48. h6+ {[%clk 0:20:15]} Nxh6 {[%clk 0:24:49]} 49. Nxg6
{[%clk 0:15:57]} Nf7 {[%clk 0:22:19]} 50. Nxf8+ {[%clk 0:15:45]} Kxf8
{[%clk 0:22:27]} 51. Qg7+ {[%clk 0:15:34]} Ke7 {[%clk 0:22:41]} 52. Qg4
{[%clk 0:14:44]} a4 {[%clk 0:22:26]} 53. Qh4+ {[%clk 0:14:09]} Kf8
{[%clk 0:22:45]} 54. Rg6 {[%clk 0:13:03]} Qa5 {[%clk 0:22:26]} 55. Qf2
{[%clk 0:07:03]} Qb5 {[%clk 0:22:18]} 56. Rg3 {[%clk 0:06:59]} b6
{[%clk 0:20:46]} 57. cxb6 {[%clk 0:06:57]} Qxb6 {[%clk 0:21:09]} 58. Qf6
{[%clk 0:07:00]} Qb5 {[%clk 0:19:19]} 59. Ka1 {[%clk 0:04:20]} Qe2
{[%clk 0:18:21]} 60. Rg1 {[%clk 0:04:42]} Qf3 {[%clk 0:15:04]} 61. Qxc6
{[%clk 0:04:06]} e3 {[%clk 0:15:18]} 62. Re1 {[%clk 0:03:25]} e2 {[%clk 0:10:22]}
63. Qc2 {[%clk 0:02:14]} Qe3 {[%clk 0:10:02]} 64. Qxe2 {[%clk 0:01:28]} Qxd4
{[%clk 0:10:22]} 65. Qe7+ {[%clk 0:01:51]} Kg8 {[%clk 0:10:07]} 66. Rf1
{[%clk 0:02:13]} Nh6 {[%clk 0:10:13]} 67. Rf8# {[%clk 0:02:28]} 1-0

[Event "European Individual Women's Chess Championship 2017"]
[Site "Riga LAT"]
[Date "2017.04.21"]
[Round "10.47"]
[White "Gundogan, Sinem Cagla"]
[Black "Sedina, Elena"]
[Result "0-1"]
[LiveChessVersion "1.4.8"]
[BlackElo "2253"]
[WhiteElo "1885"]
[ECO "C02"]
[TimeControl "40/5400:1800+30"]

1. e4 {[%clk 1:30:57]} e6 {[%clk 1:25:45]} 2. d4 {[%clk 1:31:19]} d5
{[%clk 1:26:10]} 3. e5 {[%clk 1:31:44]} c5 {[%clk 1:26:29]} 4. c3
{[%clk 1:32:08]} Nc6 {[%clk 1:25:40]} 5. Nf3 {[%clk 1:32:28]} Bd7
{[%clk 1:22:20]} 6. a3 {[%clk 1:30:39]} Nge7 {[%clk 1:11:17]} 7. b4
{[%clk 1:28:33]} cxd4 {[%clk 1:11:39]} 8. cxd4 {[%clk 1:28:57]} Rc8
{[%clk 1:05:42]} 9. Be3 {[%clk 1:22:29]} Nf5 {[%clk 0:39:42]} 10. Bd3
{[%clk 1:21:12]} b5 {[%clk 0:33:59]} 11. Bxb5 {[%clk 1:01:39]} Nxe5
{[%clk 0:33:08]} 12. Bxd7+ {[%clk 1:02:02]} Nxd7 {[%clk 0:33:30]} 13. O-O
{[%clk 1:01:56]} Nxe3 {[%clk 0:13:57]} 14. fxe3 {[%clk 1:02:19]} Bd6
{[%clk 0:14:14]} 15. Qd3 {[%clk 0:49:53]} Qc7 {[%clk 0:08:12]} 16. Nbd2
{[%clk 0:49:33]} O-O {[%clk 0:07:38]} 17. e4 {[%clk 0:39:01]} dxe4
{[%clk 0:04:06]} 18. Nxe4 {[%clk 0:39:23]} h6 {[%clk 0:04:29]} 19. Ra2
{[%clk 0:36:18]} Be7 {[%clk 0:03:55]} 20. Raf2 {[%clk 0:31:06]} Rfd8
{[%clk 0:03:32]} 21. Qe3 {[%clk 0:28:32]} Nf6 {[%clk 0:03:13]} 22. Ne5
{[%clk 0:27:47]} Nxe4 {[%clk 0:01:50]} 23. Qxe4 {[%clk 0:28:09]} f5
{[%clk 0:01:44]} 24. Qe3 {[%clk 0:25:11]} Qc3 {[%clk 0:01:16]} 25. Nd3
{[%clk 0:21:37]} Qc4 {[%clk 0:01:22]} 26. Nc5 {[%clk 0:15:46]} Rc6
{[%clk 0:00:52]} 27. Qf3 {[%clk 0:08:47]} Rb6 {[%clk 0:00:43]} 28. Re1
{[%clk 0:05:21]} Bf6 {[%clk 0:01:02]} 29. Kh1 {[%clk 0:04:26]} Bxd4
{[%clk 0:01:06]} 30. Rd2 {[%clk 0:04:51]} Bf6 {[%clk 0:00:44]} 31. Rxd8+
{[%clk 0:04:55]} Bxd8 {[%clk 0:01:13]} 32. Qa8 {[%clk 0:05:02]} Rd6
{[%clk 0:01:15]} 33. h3 {[%clk 0:02:44]} Kh7 {[%clk 0:00:45]} 34. Qb8
{[%clk 0:01:03]} Qd5 {[%clk 0:00:36]} 35. Nb7 {[%clk 0:00:34]} Bh4
{[%clk 0:00:47]} 36. Qxd6 {[%clk 0:00:32]} Bxe1 {[%clk 0:00:58]} 37. Kg1
{[%clk 0:00:32]} Qxb7 {[%clk 0:01:22]} 0-1

[Event "European Individual Women's Chess Championship 2017"]
[Site "Riga LAT"]
[Date "2017.04.21"]
[Round "10.48"]
[White "Komiagina, Maria"]
[Black "Olde, Margareth"]
[Result "0-1"]
[LiveChessVersion "1.4.8"]
[BlackElo "2110"]
[WhiteElo "2247"]
[ECO "B48"]
[TimeControl "40/5400:1800+30"]

1. e4 {[%clk 1:30:56]} c5 {[%clk 1:30:56]} 2. Nf3 {[%clk 1:31:20]} Nc6
{[%clk 1:31:19]} 3. d4 {[%clk 1:31:46]} cxd4 {[%clk 1:31:43]} 4. Nxd4
{[%clk 1:32:13]} e6 {[%clk 1:31:46]} 5. Nc3 {[%clk 1:32:37]} Qc7 {[%clk 1:32:02]}
6. Be3 a6 {[%clk 1:32:12]} 7. Bd3 {[%clk 1:33:16]} Nf6 {[%clk 1:32:20]} 8. O-O
{[%clk 1:33:35]} Ne5 {[%clk 1:31:55]} 9. h3 {[%clk 1:33:52]} Bc5 {[%clk 1:31:37]}
10. Na4 {[%clk 1:34:11]} Ba7 {[%clk 1:31:56]} 11. c4 {[%clk 1:34:34]} d6
{[%clk 1:31:55]} 12. Rc1 Bd7 {[%clk 1:31:58]} 13. Nc3 {[%clk 1:35:17]} O-O
{[%clk 1:31:39]} 14. b3 {[%clk 1:35:43]} Bc5 {[%clk 1:31:24]} 15. a4
{[%clk 1:35:26]} Qa5 {[%clk 1:27:53]} 16. Nce2 {[%clk 1:34:53]} Rac8
{[%clk 1:09:39]} 17. Kh1 Bc6 {[%clk 1:02:57]} 18. Ng3 {[%clk 1:25:20]} Ng6 19.
Nxc6 {[%clk 1:15:11]} bxc6 {[%clk 1:00:12]} 20. Qe2 {[%clk 1:11:58]} Bxe3
{[%clk 0:54:40]} 21. Qxe3 {[%clk 1:12:23]} Rb8 {[%clk 0:51:58]} 22. Bc2 e5
{[%clk 0:41:20]} 23. Nf5 {[%clk 1:12:33]} Qc7 {[%clk 0:40:40]} 24. Qg5
{[%clk 1:10:41]} Ne8 {[%clk 0:37:16]} 25. Rcd1 {[%clk 1:10:16]} f6
{[%clk 0:32:20]} 26. Qd2 {[%clk 1:10:38]} Rd8 {[%clk 0:31:47]} 27. b4
{[%clk 1:10:30]} Nf4 {[%clk 0:29:52]} 28. Bb3 {[%clk 1:08:38]} Kh8
{[%clk 0:27:53]} 29. c5 {[%clk 1:07:43]} d5 30. Ne3 {[%clk 1:01:03]} d4
{[%clk 0:24:28]} 31. Nf5 {[%clk 1:00:43]} g6 {[%clk 0:23:21]} 32. Nh4
{[%clk 1:00:00]} Ng7 {[%clk 0:20:53]} 33. g3 {[%clk 0:59:59]} Qd7
{[%clk 0:18:07]} 34. g4 {[%clk 1:00:08]} g5 {[%clk 0:16:52]} 35. Nf5
{[%clk 0:59:32]} Nxf5 {[%clk 0:16:03]} 36. exf5 {[%clk 0:58:04]} Nxh3
{[%clk 0:10:29]} 37. Rfe1 {[%clk 0:53:41]} Nf4 {[%clk 0:09:45]} 38. Kh2
{[%clk 0:52:10]} h5 {[%clk 0:08:44]} 39. Kg3 {[%clk 0:52:22]} Kg7
{[%clk 0:07:20]} 40. Qc2 {[%clk 1:15:48]} hxg4 {[%clk 0:34:37]} 41. Kxg4 Rh8
{[%clk 0:26:46]} 42. Rh1 {[%clk 1:16:11]} Rxh1 {[%clk 0:23:57]} 43. Rxh1
{[%clk 1:16:37]} d3 {[%clk 0:16:48]} 44. Qc4 {[%clk 1:17:01]} Qd5
{[%clk 0:15:24]} 45. Qxd5 {[%clk 1:15:25]} Nxd5 {[%clk 0:15:46]} 46. Bxd5
{[%clk 1:14:51]} Rxd5 {[%clk 0:16:01]} 47. Kf3 {[%clk 1:15:16]} Rd4
{[%clk 0:13:28]} 48. Rb1 {[%clk 1:12:45]} g4+ {[%clk 0:12:54]} 49. Ke3
{[%clk 1:13:00]} d2 {[%clk 0:12:46]} 50. Rd1 {[%clk 1:11:38]} Rxb4
{[%clk 0:09:23]} 51. Rxd2 {[%clk 1:12:01]} Rc4 {[%clk 0:07:05]} 52. Rd7+
{[%clk 1:11:04]} Kh6 {[%clk 0:07:01]} 53. Ra7 {[%clk 1:07:41]} Rxc5
{[%clk 0:06:57]} 54. Rxa6 {[%clk 1:07:58]} Kg5 {[%clk 0:06:43]} 55. Ke4
{[%clk 1:07:37]} Rc2 {[%clk 0:05:08]} 56. a5 Re2+ {[%clk 0:04:37]} 57. Kd3
{[%clk 1:07:39]} Rxf2 {[%clk 0:04:47]} 58. Rxc6 {[%clk 1:07:55]} Ra2
{[%clk 0:04:41]} 0-1

[Event "European Individual Women's Chess Championship 2017"]
[Site "Riga LAT"]
[Date "2017.04.21"]
[Round "10.49"]
[White "Mammadova, Narmin"]
[Black "Vidruska, Renate"]
[Result "1/2-1/2"]
[LiveChessVersion "1.4.8"]
[BlackElo "2093"]
[WhiteElo "2240"]
[ECO "A06"]
[TimeControl "40/5400:1800+30"]

1. Nf3 {[%clk 1:30:55]} d5 {[%clk 1:29:16]} 2. g3 {[%clk 1:29:24]} Nf6
{[%clk 1:29:24]} 3. Bg2 {[%clk 1:29:45]} Bf5 {[%clk 1:29:28]} 4. c4
{[%clk 1:29:05]} c6 {[%clk 1:25:34]} 5. O-O {[%clk 1:25:30]} e6 {[%clk 1:25:26]}
6. b3 {[%clk 1:21:14]} h6 {[%clk 1:25:46]} 7. Bb2 {[%clk 1:21:30]} Be7
{[%clk 1:26:10]} 8. d3 {[%clk 1:19:48]} O-O {[%clk 1:26:30]} 9. Nbd2
{[%clk 1:20:14]} a5 {[%clk 1:18:31]} 10. a3 {[%clk 1:05:55]} Bh7 {[%clk 1:06:40]}
11. Qc2 {[%clk 0:58:19]} Nbd7 {[%clk 1:01:23]} 12. Rad1 {[%clk 0:53:32]} Qb6
{[%clk 0:49:57]} 13. Qc1 {[%clk 0:36:23]} Rfe8 {[%clk 0:42:04]} 14. Qa1
{[%clk 0:34:53]} Bf8 {[%clk 0:39:02]} 15. Rfe1 {[%clk 0:26:21]} Bc5
{[%clk 0:37:45]} 16. d4 {[%clk 0:20:18]} Bf8 {[%clk 0:36:39]} 17. Rc1
{[%clk 0:19:11]} Rac8 {[%clk 0:32:25]} 18. e3 {[%clk 0:18:08]} Qa7
{[%clk 0:29:49]} 19. h3 {[%clk 0:16:02]} b5 {[%clk 0:28:22]} 20. c5
{[%clk 0:15:29]} Ra8 {[%clk 0:25:27]} 21. Red1 {[%clk 0:09:31]} Qc7
{[%clk 0:23:54]} 22. Nf1 {[%clk 0:08:50]} Ne4 {[%clk 0:23:52]} 23. Qa2
{[%clk 0:07:36]} Ra7 {[%clk 0:19:08]} 24. Ba1 {[%clk 0:07:47]} Qd8
{[%clk 0:17:35]} 25. Qe2 {[%clk 0:07:49]} Qe7 {[%clk 0:12:12]} 26. N3d2
{[%clk 0:06:56]} Nxd2 {[%clk 0:10:40]} 27. Qxd2 {[%clk 0:05:16]} e5
{[%clk 0:10:04]} 28. dxe5 {[%clk 0:04:15]} Nxe5 {[%clk 0:09:03]} 29. Qe2
{[%clk 0:02:34]} a4 {[%clk 0:08:08]} 30. f4 {[%clk 0:02:08]} Nd7 {[%clk 0:08:00]}
31. b4 {[%clk 0:02:36]} Nf6 {[%clk 0:08:14]} 32. Bd4 {[%clk 0:02:28]} Be4
{[%clk 0:07:29]} 33. Nd2 {[%clk 0:01:55]} Bxg2 {[%clk 0:07:40]} 34. Kxg2
{[%clk 0:02:21]} Ne4 {[%clk 0:08:07]} 35. Nf3 {[%clk 0:02:27]} Qe6
{[%clk 0:05:39]} 36. Kh2 {[%clk 0:02:06]} Be7 {[%clk 0:05:10]} 37. Rg1
{[%clk 0:01:40]} Bf6 {[%clk 0:04:28]} 38. Ne5 {[%clk 0:01:42]} Bxe5
{[%clk 0:02:52]} 39. Bxe5 {[%clk 0:02:07]} Rd7 {[%clk 0:02:04]} 40. Bd4
{[%clk 0:32:01]} f6 {[%clk 0:31:46]} 41. Rcf1 {[%clk 0:25:06]} Rf7
{[%clk 0:31:58]} 42. g4 {[%clk 0:23:58]} Kf8 {[%clk 0:31:35]} 43. Rf3
{[%clk 0:21:41]} Ke7 {[%clk 0:31:46]} 44. Kg2 {[%clk 0:20:04]} Kd7
{[%clk 0:30:09]} 45. Kf1 {[%clk 0:19:43]} Rff8 {[%clk 0:28:16]} 46. Ke1
{[%clk 0:19:28]} Rh8 {[%clk 0:28:04]} 47. Kd1 {[%clk 0:19:32]} Rhg8
{[%clk 0:25:36]} 48. Kc1 {[%clk 0:19:43]} Kc8 {[%clk 0:25:38]} 49. Kb2
{[%clk 0:19:42]} Qd7 {[%clk 0:25:18]} 50. Rg2 {[%clk 0:16:15]} Re7
{[%clk 0:24:42]} 51. Qf1 {[%clk 0:16:04]} Rge8 {[%clk 0:24:03]} 52. h4
{[%clk 0:14:32]} Rf8 {[%clk 0:22:59]} 53. Qe2 {[%clk 0:11:41]} 1/2-1/2

[Event "European Individual Women's Chess Championship 2017"]
[Site "Riga LAT"]
[Date "2017.04.21"]
[Round "10.50"]
[White "Balaian, Alina"]
[Black "Krumina, Linda"]
[Result "1-0"]
[LiveChessVersion "1.4.8"]
[BlackElo "2090"]
[WhiteElo "2229"]
[ECO "B21"]
[TimeControl "40/5400:1800+30"]

1. e4 {[%clk 1:30:59]} c5 {[%clk 1:30:53]} 2. d4 {[%clk 1:31:22]} cxd4
{[%clk 1:31:14]} 3. c3 {[%clk 1:31:49]} d3 {[%clk 1:30:17]} 4. Bxd3
{[%clk 1:32:14]} Nc6 {[%clk 1:29:54]} 5. Nf3 {[%clk 1:32:38]} d6 {[%clk 1:29:47]}
6. O-O {[%clk 1:32:54]} g6 {[%clk 1:28:02]} 7. Bc4 {[%clk 1:28:36]} Qc7
{[%clk 1:22:31]} 8. Na3 {[%clk 1:27:51]} a6 {[%clk 1:20:16]} 9. Re1
{[%clk 1:25:10]} Bg7 {[%clk 1:17:22]} 10. Bf4 {[%clk 1:22:49]} Ne5
{[%clk 1:06:46]} 11. Bb3 {[%clk 1:14:40]} Bg4 {[%clk 0:49:59]} 12. Bxe5
{[%clk 1:13:17]} dxe5 {[%clk 0:46:55]} 13. Bxf7+ {[%clk 1:13:34]} Kf8
{[%clk 0:45:52]} 14. Bb3 {[%clk 1:12:01]} Rd8 {[%clk 0:43:39]} 15. Qe2
{[%clk 1:12:25]} Bf6 {[%clk 0:42:00]} 16. Ng5 {[%clk 1:05:45]} Bxg5
{[%clk 0:36:27]} 17. Qxg4 {[%clk 1:06:05]} Bf6 {[%clk 0:36:40]} 18. Rad1
{[%clk 1:05:35]} Nh6 {[%clk 0:31:02]} 19. Rxd8+ {[%clk 1:05:31]} Qxd8
{[%clk 0:31:23]} 20. Rd1 {[%clk 1:03:30]} Qb8 {[%clk 0:24:41]} 21. Qe6
{[%clk 1:01:50]} Kg7 {[%clk 0:24:20]} 22. Rd7 {[%clk 1:02:02]} Rd8
{[%clk 0:21:11]} 23. Rxe7+ {[%clk 1:01:32]} 1-0

[Event "European Individual Women's Chess Championship 2017"]
[Site "Riga LAT"]
[Date "2017.04.21"]
[Round "10.51"]
[White "Stetsko, Lanita"]
[Black "Makka, Ioulia"]
[Result "0-1"]
[LiveChessVersion "1.4.8"]
[BlackElo "2069"]
[WhiteElo "2226"]
[ECO "B16"]
[TimeControl "40/5400:1800+30"]

1. e4 {[%clk 1:30:55]} c6 {[%clk 1:30:46]} 2. d4 {[%clk 1:31:12]} d5
{[%clk 1:31:11]} 3. Nc3 {[%clk 1:31:36]} dxe4 {[%clk 1:31:33]} 4. Nxe4
{[%clk 1:32:01]} Nf6 {[%clk 1:31:52]} 5. Nxf6+ {[%clk 1:31:13]} gxf6
{[%clk 1:32:19]} 6. c3 {[%clk 1:30:51]} Nd7 {[%clk 1:32:45]} 7. Nf3
{[%clk 1:24:56]} Nb6 {[%clk 1:32:57]} 8. g3 {[%clk 1:14:54]} Bf5 {[%clk 1:32:41]}
9. Nh4 {[%clk 1:11:49]} Be6 {[%clk 1:19:16]} 10. Bg2 {[%clk 1:08:26]} Qd7
{[%clk 1:18:33]} 11. O-O {[%clk 1:01:02]} Bh3 {[%clk 1:16:42]} 12. a4
{[%clk 0:52:57]} Bxg2 {[%clk 1:09:27]} 13. Nxg2 {[%clk 0:52:10]} f5
{[%clk 1:00:16]} 14. Qh5 {[%clk 0:41:11]} Nd5 {[%clk 0:49:05]} 15. Ne3
{[%clk 0:39:52]} e6 {[%clk 0:47:04]} 16. Nxd5 {[%clk 0:39:11]} cxd5
{[%clk 0:38:50]} 17. Bg5 {[%clk 0:38:31]} Bg7 {[%clk 0:36:57]} 18. Rfe1
{[%clk 0:35:52]} h6 {[%clk 0:32:22]} 19. Bf4 {[%clk 0:35:01]} Kf8
{[%clk 0:27:51]} 20. Be5 {[%clk 0:18:13]} Bxe5 {[%clk 0:27:28]} 21. Rxe5
{[%clk 0:18:40]} Rc8 {[%clk 0:26:50]} 22. Qf3 {[%clk 0:18:16]} Rg8
{[%clk 0:23:39]} 23. b3 {[%clk 0:12:53]} Rg4 {[%clk 0:20:56]} 24. Qe3
{[%clk 0:13:05]} Kg7 {[%clk 0:20:20]} 25. f3 {[%clk 0:13:04]} Rg6
{[%clk 0:20:25]} 26. Rc1 {[%clk 0:08:07]} Rc6 {[%clk 0:19:17]} 27. Qd3
{[%clk 0:07:10]} h5 {[%clk 0:16:14]} 28. Rc2 {[%clk 0:03:01]} h4 {[%clk 0:15:55]}
29. Kg2 {[%clk 0:02:41]} hxg3 {[%clk 0:13:35]} 30. hxg3 {[%clk 0:01:26]} Qc7
{[%clk 0:13:22]} 31. f4 {[%clk 0:01:31]} f6 {[%clk 0:12:55]} 32. Re3
{[%clk 0:01:52]} Qxf4 {[%clk 0:11:51]} 33. Rf2 {[%clk 0:02:18]} Qc7
{[%clk 0:10:25]} 34. c4 {[%clk 0:00:40]} dxc4 {[%clk 0:10:14]} 35. bxc4
{[%clk 0:01:06]} f4 {[%clk 0:04:15]} 36. Ref3 {[%clk 0:01:34]} fxg3
{[%clk 0:02:38]} 37. Rc2 {[%clk 0:00:39]} Qd6 {[%clk 0:02:22]} 38. Rb2
{[%clk 0:00:40]} Rc7 {[%clk 0:02:03]} 39. Rb5 {[%clk 0:00:46]} b6
{[%clk 0:01:28]} 40. d5 {[%clk 0:30:40]} Qd7 {[%clk 0:30:34]} 41. Rxg3
{[%clk 0:17:53]} Rxg3+ {[%clk 0:25:54]} 42. Qxg3+ {[%clk 0:18:16]} Kf8
{[%clk 0:25:58]} 43. Qf4 {[%clk 0:16:28]} Qg7+ {[%clk 0:25:45]} 44. Kf2
{[%clk 0:12:56]} e5 {[%clk 0:24:40]} 45. Qe4 {[%clk 0:10:13]} Qh6
{[%clk 0:18:29]} 46. Rb1 {[%clk 0:06:38]} Qh2+ {[%clk 0:14:56]} 47. Ke3
{[%clk 0:06:00]} Rg7 {[%clk 0:12:48]} 48. Rf1 {[%clk 0:06:07]} Rg3+
{[%clk 0:12:39]} 49. Rf3 {[%clk 0:06:33]} Qg1+ {[%clk 0:12:40]} 50. Kd3
{[%clk 0:06:44]} Qd1+ {[%clk 0:11:05]} 51. Ke3 {[%clk 0:07:05]} Rxf3+
{[%clk 0:10:07]} 52. Qxf3 {[%clk 0:07:33]} Qd4+ {[%clk 0:08:39]} 53. Ke2
{[%clk 0:07:57]} Qxc4+ {[%clk 0:09:04]} 54. Ke1 {[%clk 0:07:57]} Qb4+
{[%clk 0:09:16]} 55. Ke2 {[%clk 0:08:15]} Ke7 {[%clk 0:08:59]} 56. Qd3
{[%clk 0:08:05]} Qg4+ {[%clk 0:08:45]} 57. Ke1 {[%clk 0:08:15]} Qg1+
{[%clk 0:07:57]} 58. Ke2 {[%clk 0:08:39]} Qg2+ {[%clk 0:08:10]} 59. Ke1
{[%clk 0:08:49]} Kd6 {[%clk 0:07:55]} 60. Qa6 {[%clk 0:09:02]} Qxd5
{[%clk 0:07:51]} 61. Qxa7 {[%clk 0:09:28]} Qa5+ {[%clk 0:07:55]} 0-1

[Event "European Individual Women's Chess Championship 2017"]
[Site "Riga LAT"]
[Date "2017.04.21"]
[Round "10.52"]
[White "Zherebtsova, Alexandra"]
[Black "Sinitsina, Anastassia"]
[Result "1-0"]
[LiveChessVersion "1.4.8"]
[BlackElo "2052"]
[WhiteElo "2222"]
[ECO "A49"]
[TimeControl "40/5400:1800+30"]

1. d4 {[%clk 1:30:56]} Nf6 {[%clk 1:30:46]} 2. Nf3 {[%clk 1:31:23]} g6
{[%clk 1:30:52]} 3. g3 {[%clk 1:28:49]} Bg7 {[%clk 1:30:40]} 4. Bg2
{[%clk 1:25:40]} O-O {[%clk 1:29:59]} 5. O-O {[%clk 1:26:05]} d5 {[%clk 1:29:06]}
6. Nbd2 {[%clk 1:19:55]} Nbd7 {[%clk 1:25:33]} 7. e3 {[%clk 1:17:28]} c5
{[%clk 1:21:29]} 8. b3 {[%clk 1:12:34]} e6 {[%clk 1:12:35]} 9. Bb2
{[%clk 1:12:41]} b6 {[%clk 1:12:12]} 10. Rc1 {[%clk 1:11:52]} Ba6
{[%clk 1:11:37]} 11. Re1 {[%clk 1:11:58]} Rc8 {[%clk 1:10:01]} 12. c4
{[%clk 1:11:26]} Re8 {[%clk 1:06:44]} 13. Rc2 {[%clk 1:08:01]} cxd4
{[%clk 1:05:08]} 14. exd4 {[%clk 1:02:14]} Bb7 {[%clk 1:00:42]} 15. Ne5
{[%clk 0:55:50]} Qc7 {[%clk 0:46:28]} 16. b4 {[%clk 0:48:48]} dxc4
{[%clk 0:44:58]} 17. Rxc4 {[%clk 0:49:11]} Qb8 {[%clk 0:44:57]} 18. Nc6
{[%clk 0:45:20]} Qa8 {[%clk 0:42:44]} 19. b5 {[%clk 0:43:07]} Bf8
{[%clk 0:41:14]} 20. Qb3 {[%clk 0:33:31]} Nd5 {[%clk 0:38:56]} 21. Rec1
{[%clk 0:33:14]} N7f6 {[%clk 0:36:45]} 22. Nf3 {[%clk 0:23:42]} Bxc6
{[%clk 0:28:11]} 23. Rxc6 {[%clk 0:20:01]} a6 {[%clk 0:23:47]} 24. a4
{[%clk 0:15:46]} axb5 {[%clk 0:19:49]} 25. axb5 {[%clk 0:16:06]} Qb7
{[%clk 0:20:08]} 26. Ne5 {[%clk 0:16:15]} Red8 {[%clk 0:17:44]} 27. R1c4
{[%clk 0:12:46]} Bd6 {[%clk 0:15:04]} 28. h3 {[%clk 0:10:10]} Ra8
{[%clk 0:14:23]} 29. Bc1 {[%clk 0:08:15]} Qa7 {[%clk 0:10:30]} 30. Bg5
{[%clk 0:07:50]} Bxe5 {[%clk 0:10:08]} 31. dxe5 {[%clk 0:07:39]} Qa1+
{[%clk 0:10:33]} 32. Rc1 {[%clk 0:04:24]} Qxe5 {[%clk 0:10:56]} 33. Bxf6
{[%clk 0:02:35]} Nxf6 {[%clk 0:11:13]} 34. Rxb6 {[%clk 0:02:53]} Ra1
{[%clk 0:07:14]} 35. Rbc6 {[%clk 0:02:22]} Rd2 {[%clk 0:05:25]} 36. Qb4
{[%clk 0:01:45]} Rd1+ {[%clk 0:03:27]} 37. Rxd1 {[%clk 0:02:06]} Rxd1+
{[%clk 0:03:52]} 38. Kh2 {[%clk 0:02:15]} Nd7 {[%clk 0:03:10]} 39. b6
{[%clk 0:01:05]} Rd4 {[%clk 0:01:14]} 40. Qc3 {[%clk 0:30:58]} Kg7
{[%clk 0:30:50]} 41. b7 {[%clk 0:30:36]} Kf6 {[%clk 0:25:22]} 42. Rc8
{[%clk 0:29:40]} Ra4 {[%clk 0:24:56]} 43. Qxe5+ {[%clk 0:29:24]} Kxe5
{[%clk 0:25:16]} 44. Rd8 {[%clk 0:29:31]} 1-0